fUSD/lending_fUSD_20250911
["ID","MTS","AMOUNT","RATE_DAILY","PERIOD"]
[384950814,1757633464101,-151.0,0.00027397,7]
[384950815,1757633464111,-151.0,0.00027397,7]
[384950816,1757633464121,-151.0,0.00027397,7]
[384950817,1757633464131,-400.0,0.00027397,7]
[384950818,1757633464141,-151.0,0.00027397,7]
[384950819,1757633464151,-802.24,0.00027397,7]
[384950820,1757633464162,-151.0,0.00027397,7]
[384950821,1757633464172,-151.0,0.00027397,7]
[384950822,1757633464182,-151.0,0.00027397,7]
[384950823,1757633464192,-151.0,0.00027397,7]
[384950824,1757633464202,-1604.77,0.00027397,7]
[384950825,1757633464211,-151.0,0.00027397,7]
[384950826,1757633464221,-167.81144,0.00027397,7]
[384950827,1757633464231,-1151.18,0.00027397,7]
[384950828,1757633464241,-400.0,0.00027397,7]
[384950829,1757633464251,-151.0,0.00027397,7]
[384950830,1757633464260,-151.0,0.00027397,7]
[384950831,1757633464270,-151.0,0.00027397,7]
[384950832,1757633464280,-151.0,0.00027397,7]
[384950833,1757633464290,-151.0,0.00027397,7]
[384950834,1757633464299,-301.56986,0.00027397,7]
[384950835,1757633464456,-400.0,0.00027397,7]
[384950836,1757633464466,-1298.19,0.00027397,7]
[384950837,1757633464476,-861.19,0.00027397,7]
[384950838,1757633464485,-952.17,0.00027397,7]
[384950839,1757633464495,-400.0,0.00027397,7]
[384950840,1757633464505,-400.0,0.00027397,7]
[384950841,1757633464514,-400.0,0.00027397,7]
[384950842,1757633464524,-2213.82,0.00027397,7]
[384950843,1757633464535,-2204.19,0.00027397,7]
[384950844,1757633464544,-400.0,0.00027397,7]
[384950845,1757633464554,-400.0,0.00027397,7]
[384950846,1757633464563,-400.0,0.00027397,7]
[384950847,1757633464573,-400.0,0.00027397,7]
[384950848,1757633464582,-400.0,0.00027397,7]
[384950849,1757633464592,-400.0,0.00027397,7]
[384950850,1757633464602,-400.0,0.00027397,7]
[384950851,1757633464611,-406.49,0.00027397,7]
[384950852,1757633464621,-400.0,0.00027397,7]
[384950853,1757633464631,-1178.64,0.00027397,7]
[384950854,1757633464641,-754.57,0.00027397,7]
[384950855,1757633464650,-1273.24,0.00027397,7]
[384950856,1757633464660,-1522.42,0.00027397,7]
[384950857,1757633464669,-453.02,0.00027397,7]
[384950858,1757633464679,-400.0,0.00027397,7]
[384950859,1757633464689,-400.0,0.00027397,7]
[384950860,1757633464698,-949.12,0.00027397,7]
[384950861,1757633464708,-1083.88,0.00027397,7]
[384950862,1757633464717,-400.0,0.00027397,7]
[384950863,1757633464727,-1959.23,0.00027397,7]
[384950864,1757633464736,-1156.25,0.00027397,7]
[384950865,1757633464746,-400.0,0.00027397,7]
[384950866,1757633464756,-1599.37,0.00027397,7]
[384950867,1757633464766,-1233.31,0.00027397,7]
[384950868,1757633464775,-400.0,0.00027397,7]
[384950869,1757633464785,-591.65,0.00027397,7]
[384950870,1757633464795,-400.0,0.00027397,7]
[384950871,1757633464804,-400.0,0.00027397,7]
[384950872,1757633464814,-1169.6,0.00027397,7]
[384950873,1757633464824,-400.0,0.00027397,7]
[384950874,1757633464834,-609.33,0.00027397,7]
[384950875,1757633464843,-505.59,0.00027397,7]
[384950876,1757633464853,-400.0,0.00027397,7]
[384950877,1757633464864,-1184.35,0.00027397,7]
[384950878,1757633464873,-1314.36,0.00027397,7]
[384950879,1757633464883,-779.61,0.00027397,7]
[384950880,1757633464893,-2191.34,0.00027397,7]
[384950881,1757633464903,-2138.23,0.00027397,7]
[384950882,1757633464913,-3752.4,0.00027397,7]
[384950883,1757633464922,-151.0,0.00027397,7]
[384950884,1757633464931,-151.0,0.00027397,7]
[384950885,1757633464941,-151.0,0.00027397,7]
[384950886,1757633464950,-151.0,0.00027397,7]
[384950887,1757633464960,-1299.21,0.00027397,7]
[384950888,1757633464969,-151.0,0.00027397,7]
[384950889,1757633464979,-151.0,0.00027397,7]
[384950890,1757633464988,-151.0,0.00027397,7]
[384950891,1757633464998,-151.0,0.00027397,7]
[384950892,1757633465015,-151.0,0.00027397,7]
[384950893,1757633465024,-1286.81,0.00027397,7]
[384950894,1757633465034,-151.0,0.00027397,7]
[384950895,1757633465043,-272.3299,0.00027397,7]
[384950896,1757633465053,-151.0,0.00027397,7]
[384950897,1757633465063,-151.0,0.00027397,7]
[384950898,1757633465072,-151.0,0.00027397,7]
[384950899,1757633465082,-1836.16,0.00027397,7]
[384950900,1757633465092,-400.0,0.00027397,7]
[384950901,1757633465101,-500.0,0.00027397,7]
[384950902,1757633465111,-500.0,0.00027397,7]
[384950903,1757633465120,-500.0,0.00027397,7]
[384950904,1757633465130,-150.0,0.00027397,2]
[384950905,1757633465139,-150.0,0.00027397,2]
[384950906,1757633465148,-400.0,0.00027397,7]
[384950907,1757633465158,-400.0,0.00027397,7]
[384950908,1757633465167,-150.0,0.00027397,2]
[384950909,1757633465177,-400.0,0.00027397,7]
[384950910,1757633465186,-400.0,0.00027397,7]
[384950911,1757633465195,-150.0,0.00027397,2]
[384950912,1757633465204,-150.0,0.00027397,7]
[384950913,1757633465214,-2397.01,0.00027397,7]
[384950914,1757633465223,-151.0,0.00027397,7]
[384950915,1757633465233,-151.0,0.00027397,7]
[384950916,1757633465243,-1204.85,0.00027397,7]
[384950917,1757633465252,-715.33,0.00027397,7]
[384950918,1757633465261,-500.0,0.00027397,7]
[384950919,1757633465270,-1264.96,0.00027397,7]
[384950920,1757633465279,-151.0,0.00027397,7]
[384950921,1757633465289,-400.0,0.00027397,7]
[384950922,1757633465300,-151.0,0.00027397,7]
[384950923,1757633465310,-466.17,0.00027397,7]
[384950924,1757633465320,-400.0,0.00027397,7]
[384950925,1757633465330,-151.0,0.00027397,7]
[384950926,1757633465339,-251.83712,0.00027397,7]
[384950927,1757633465349,-2021.87,0.00027397,7]
[384950928,1757633465359,-400.0,0.00027397,7]
[384950929,1757633465368,-151.0,0.00027397,7]
[384950930,1757633465378,-2078.21,0.00027397,7]
[384950931,1757633465388,-500.0,0.00027397,7]
[384950932,1757633465397,-151.0,0.00027397,7]
[384950933,1757633465407,-151.0,0.00027397,7]
[384950934,1757633465416,-151.0,0.00027397,7]
[384950936,1757633465426,-2054.39,0.00027397,7]
[384950937,1757633465435,-151.0,0.00027397,7]
[384950938,1757633465445,-500.0,0.00027397,7]
[384950939,1757633465454,-150.0,0.00027397,7]
[384950940,1757633465463,-151.0,0.00027397,7]
[384950941,1757633465473,-1611.06,0.00027397,7]
[384950942,1757633465483,-151.0,0.00027397,7]
[384950943,1757633465492,-300.0,0.00027397,7]
[384950944,1757633465502,-151.0,0.00027397,7]
[384950945,1757633465511,-151.0,0.00027397,7]
[384950946,1757633465522,-3283.72,0.00027397,7]
[384950947,1757633465532,-400.0,0.00027397,7]
[384950948,1757633465541,-2546.19,0.00027397,7]
[384950949,1757633465550,-625.24,0.00027397,7]
[384950950,1757633465560,-1133.37,0.00027397,7]
[384950951,1757633465570,-1010.54,0.00027397,7]
[384950952,1757633465579,-1350.88,0.00027397,7]
[384950953,1757633465589,-2788.83,0.00027397,7]
[384950954,1757633465599,-1161.6,0.00027397,7]
[384950955,1757633465608,-151.0,0.00027397,7]
[384950956,1757633465618,-1239.86,0.00027397,7]
[384950957,1757633465627,-151.0,0.00027397,7]
[384950958,1757633465637,-151.0,0.00027397,7]
[384950959,1757633465646,-151.0,0.00027397,7]
[384950960,1757633465657,-400.0,0.00027397,7]
[384950961,1757633465666,-3659.99,0.00027397,7]
[384950962,1757633465675,-151.0,0.00027397,7]
[384950963,1757633465685,-151.0,0.00027397,7]
[384950964,1757633465694,-400.0,0.00027397,7]
[384950965,1757633465704,-151.0,0.00027397,7]
[384950966,1757633465714,-151.0,0.00027397,7]
[384950967,1757633465723,-151.0,0.00027397,7]
[384950968,1757633465733,-500.0,0.00027397,7]
[384950969,1757633465742,-151.0,0.00027397,7]
[384950970,1757633465752,-151.0,0.00027397,7]
[384950971,1757633465761,-500.0,0.00027397,7]
[384950972,1757633465770,-151.0,0.00027397,7]
[384950973,1757633465780,-599.82,0.00027397,7]
[384950974,1757633465789,-189.495523,0.00027397,7]
[384950975,1757633465798,-400.0,0.00027397,7]
[384950976,1757633465808,-400.0,0.00027397,7]
[384950977,1757633465817,-151.0,0.00027397,7]
[384950978,1757633465827,-151.0,0.00027397,7]
[384950979,1757633465837,-1058.57,0.00027397,7]
[384950980,1757633465846,-151.0,0.00027397,7]
[384950981,1757633465855,-151.0,0.00027397,7]
[384950982,1757633465866,-151.0,0.00027397,7]
[384950983,1757633465875,-151.0,0.00027397,7]
[384950984,1757633465886,-151.0,0.00027397,7]
[384950985,1757633465896,-151.0,0.00027397,7]
[384950986,1757633465906,-151.0,0.00027397,7]
[384950987,1757633465919,-151.0,0.00027397,7]
[384950988,1757633465929,-151.0,0.00027397,7]
[384950989,1757633465939,-180.34555,0.00027397,7]
[384950990,1757633465948,-277.326988,0.00027397,7]
[384950991,1757633465959,-151.0,0.00027397,7]
[384950992,1757633465969,-570.908593,0.00027397,7]
[384950993,1757633465978,-400.0,0.00027397,7]
[384950994,1757633465988,-151.0,0.00027397,7]
[384950995,1757633465998,-162.483739,0.00027397,7]
[384950996,1757633466008,-870.59,0.00027397,7]
[384950997,1757633466018,-570.908593,0.00027397,7]
[384950998,1757633466027,-151.0,0.00027397,7]
[384950999,1757633466036,-570.908593,0.00027397,7]
[384951000,1757633466045,-253.446001,0.00027397,7]
[384951001,1757633466054,-570.908593,0.00027397,7]
[384951002,1757633466064,-1051.01,0.00027397,7]
[384951003,1757633466073,-151.0,0.00027397,7]
[384951004,1757633466082,-885.69,0.00027397,7]
[384951005,1757633466091,-400.0,0.00027397,7]
[384951006,1757633466101,-151.0,0.00027397,7]
[384951007,1757633466110,-1221.0,0.00027397,7]
[384951008,1757633466119,-570.908593,0.00027397,7]
[384951009,1757633466129,-151.0,0.00027397,7]
[384951010,1757633466138,-570.908593,0.00027397,7]
[384951011,1757633466147,-151.0,0.00027397,7]
[384951012,1757633466156,-151.0,0.00027397,7]
[384951013,1757633466166,-570.908593,0.00027397,7]
[384951014,1757633466175,-201.833557,0.00027397,7]
[384951015,1757633466184,-570.908593,0.00027397,7]
[384951016,1757633466193,-400.0,0.00027397,7]
[384951017,1757633466202,-981.38,0.00027397,7]
[384951018,1757633466211,-570.908593,0.00027397,7]
[384951019,1757633466220,-2580.89,0.00027397,7]
[384951020,1757633466229,-401.69,0.00027397,7]
[384951021,1757633466238,-570.908593,0.00027397,7]
[384951022,1757633466247,-570.908593,0.00027397,7]
[384951023,1757633466257,-570.908593,0.00027397,7]
[384951024,1757633466266,-1325.12,0.00027397,7]
[384951025,1757633466275,-1406.34,0.00027397,7]
[384951026,1757633466284,-450.31,0.00027397,7]
[384951027,1757633466294,-570.908593,0.00027397,7]
[384951028,1757633466303,-570.908593,0.00027397,7]
[384951029,1757633466312,-570.908593,0.00027397,7]
[384951030,1757633466321,-1966.27,0.00027397,7]
[384951031,1757633466331,-570.908599,0.00027397,7]
[384951032,1757633466339,-151.0,0.00027397,7]
[384951033,1757633466349,-151.0,0.00027397,7]
[384951034,1757633466358,-508.18,0.00027397,7]
[384951035,1757633466367,-1068.12,0.00027397,7]
[384951036,1757633466377,-151.0,0.00027397,7]
[384951037,1757633466386,-400.0,0.00027397,7]
[384951038,1757633466395,-151.0,0.00027397,7]
[384951039,1757633466404,-1031.57,0.00027397,7]
[384951040,1757633466414,-1144.2,0.00027397,7]
[384951041,1757633466422,-400.0,0.00027397,7]
[384951042,1757633466432,-151.0,0.00027397,7]
[384951043,1757633466441,-151.0,0.00027397,7]
[384951044,1757633466450,-400.0,0.00027397,7]
[384951045,1757633466459,-151.0,0.00027397,7]
[384951046,1757633466468,-151.0,0.00027397,7]
[384951047,1757633466479,-2005.14,0.00027397,7]
[384951048,1757633466496,-400.0,0.00027397,7]
[384951049,1757633466506,-151.0,0.00027397,7]
[384951050,1757633466516,-204.637864,0.00027397,7]
[384951051,1757633466525,-1338.86,0.00027397,7]
[384951052,1757633466534,-400.0,0.00027397,7]
[384951053,1757633466852,-400.0,0.00027397,7]
[384951054,1757633466876,-1705.5,0.00027397,7]
[384951055,1757633466886,-1384.85,0.00027397,7]
[384951056,1757633466896,-752.53,0.00027397,7]
[384951057,1757633466906,-1424.49,0.00027397,7]
[384951058,1757633466917,-1543.53,0.00027397,7]
[384951059,1757633466927,-1197.36,0.00027397,7]
[384951060,1757633466936,-401.02488933,0.00027397,7]
[384951061,1757633466946,-1089.51,0.00027397,7]
[384951062,1757633466955,-1419.68,0.00027397,7]
[384951063,1757633466964,-400.0,0.00027397,7]
[384951064,1757633466974,-560.91,0.00027397,7]
[384951065,1757633466983,-987.91,0.00027397,7]
[384951066,1757633466992,-151.0,0.00027397,7]
[384951067,1757633467002,-1405.14,0.00027397,7]
[384951068,1757633467011,-163.670071,0.00027397,7]
[384951069,1757633467020,-507.06,0.00027397,7]
[384951070,1757633467029,-400.0,0.00027397,7]
[384951071,1757633467039,-221.669805,0.00027397,7]
[384951072,1757633467048,-221.669805,0.00027397,7]
[384951073,1757633467057,-221.669805,0.00027397,7]
[384951074,1757633467067,-1107.15,0.00027397,7]
[384951075,1757633467076,-221.669805,0.00027397,7]
[384951076,1757633467086,-400.0,0.00027397,7]
[384951077,1757633467094,-400.0,0.00027397,7]
[384951078,1757633467103,-221.669805,0.00027397,7]
[384951079,1757633467113,-221.669805,0.00027397,7]
[384951080,1757633467122,-221.669805,0.00027397,7]
[384951081,1757633467131,-221.669805,0.00027397,7]
[384951082,1757633467141,-221.669805,0.00027397,7]
[384951083,1757633467150,-400.0,0.00027397,7]
[384951084,1757633467159,-221.669805,0.00027397,7]
[384951085,1757633467169,-221.669805,0.00027397,7]
[384951086,1757633467178,-221.669805,0.00027397,7]
[384951087,1757633467187,-400.0,0.00027397,7]
[384951088,1757633467196,-400.0,0.00027397,7]
[384951089,1757633467206,-221.669805,0.00027397,7]
[384951090,1757633467216,-1286.63,0.00027397,7]
[384951091,1757633467225,-221.669805,0.00027397,7]
[384951092,1757633467235,-407.66,0.00027397,7]
[384951093,1757633467244,-221.669805,0.00027397,7]
[384951094,1757633467253,-1615.55,0.00027397,7]
[384951095,1757633467263,-221.669799,0.00027397,7]
[384951096,1757633467271,-400.0,0.00027397,7]
[384951097,1757633467281,-1227.53,0.00027397,7]
[384951098,1757633467290,-2361.95,0.00027397,7]
[384951099,1757633467299,-1700.02,0.00027397,7]
[384951100,1757633467308,-460.81,0.00027397,7]
[384951101,1757633467317,-400.0,0.00027397,7]
[384951102,1757633467327,-400.0,0.00027397,7]
[384951103,1757633467336,-1039.07,0.00027397,7]
[384951104,1757633467345,-1435.29,0.00027397,7]
[384951105,1757633467354,-400.0,0.00027397,7]
[384951106,1757633467364,-1444.49,0.00027397,7]
[384951107,1757633467373,-400.0,0.00027397,7]
[384951108,1757633467382,-6639.42,0.00027397,7]
[384951109,1757633467391,-150.0,0.00027397,7]
[384951110,1757633467401,-726.73,0.00027397,7]
[384951111,1757633467411,-150.0,0.00027397,7]
[384951112,1757633467420,-400.0,0.00027397,7]
[384951113,1757633467429,-1359.39,0.00027397,7]
[384951114,1757633467439,-500.0,0.00027397,7]
[384951115,1757633467448,-400.0,0.00027397,7]
[384951116,1757633467458,-150.0,0.00027397,7]
[384951117,1757633467467,-150.0,0.00027397,7]
[384951118,1757633467476,-500.0,0.00027397,7]
[384951119,1757633467490,-2478.99,0.00027397,7]
[384951120,1757633467499,-151.0,0.00027397,7]
[384951121,1757633467509,-400.0,0.00027397,7]
[384951122,1757633467518,-2076.21,0.00027397,7]
[384951123,1757633467527,-151.0,0.00027397,7]
[384951124,1757633467536,-1098.13,0.00027397,7]
[384951125,1757633467545,-150.0,0.00027397,7]
[384951126,1757633467555,-400.0,0.00027397,7]
[384951127,1757633467564,-151.0,0.00027397,7]
[384951128,1757633467573,-1378.72,0.00027397,7]
[384951129,1757633467583,-150.0,0.00027397,7]
[384951130,1757633467592,-150.0,0.00027397,7]
[384951131,1757633467602,-151.0,0.00027397,7]
[384951132,1757633467611,-151.0,0.00027397,7]
[384951133,1757633467621,-150.0,0.00027397,7]
[384951134,1757633467630,-1274.1,0.00027397,7]
[384951135,1757633467639,-400.0,0.00027397,7]
[384951136,1757633467649,-151.0,0.00027397,7]
[384951137,1757633467658,-406.30845926,0.00027397,7]
[384951138,1757633467668,-151.0,0.00027397,7]
[384951139,1757633467677,-151.0,0.00027397,7]
[384951140,1757633467687,-1502.78,0.00027397,7]
[384951141,1757633467696,-151.0,0.00027397,7]
[384951142,1757633467706,-151.0,0.00027397,7]
[384951143,1757633467715,-499.68,0.00027397,7]
[384951144,1757633467725,-150.0,0.00027397,7]
[384951145,1757633467734,-151.0,0.00027397,7]
[384951146,1757633467743,-151.0,0.00027397,7]
[384951147,1757633467753,-155.291865,0.00027397,7]
[384951148,1757633467762,-400.0,0.00027397,7]
[384951149,1757633467772,-400.0,0.00027397,7]
[384951150,1757633467781,-400.0,0.00027397,5]
[384951151,1757633467791,-1042.46,0.00027397,7]
[384951152,1757633467800,-258.273751,0.00027397,7]
[384951153,1757633467810,-151.0,0.00027397,7]
[384951154,1757633467819,-258.273751,0.00027397,7]
[384951155,1757633467829,-151.0,0.00027397,7]
[384951156,1757633467838,-258.273751,0.00027397,7]
[384951157,1757633467848,-258.273751,0.00027397,7]
[384951158,1757633467857,-400.0,0.00027397,7]
[384951159,1757633467866,-3024.01,0.00027397,7]
[384951160,1757633467876,-400.0,0.00027397,7]
[384951161,1757633467885,-258.273751,0.00027397,7]
[384951162,1757633467895,-258.273751,0.00027397,7]
[384951163,1757633467905,-1861.34,0.00027397,7]
[384951164,1757633467917,-400.0,0.00027397,7]
[384951165,1757633467926,-258.273751,0.00027397,7]
[384951166,1757633467937,-258.273751,0.00027397,7]
[384951167,1757633467946,-258.273751,0.00027397,7]
[384951168,1757633467956,-400.0,0.00027397,7]
[384951169,1757633467965,-151.0,0.00027397,7]
[384951170,1757633467975,-258.273751,0.00027397,7]
[384951171,1757633467984,-151.0,0.00027397,7]
[384951172,1757633467994,-258.273751,0.00027397,7]
[384951173,1757633468004,-444.38,0.00027397,7]
[384951174,1757633468013,-151.0,0.00027397,7]
[384951175,1757633468023,-258.273751,0.00027397,7]
[384951176,1757633468032,-400.0,0.00027397,7]
[384951177,1757633468041,-151.0,0.00027397,7]
[384951178,1757633468050,-151.0,0.00027397,7]
[384951179,1757633468059,-407.4,0.00027397,7]
[384951180,1757633468068,-258.273751,0.00027397,7]
[384951181,1757633468077,-1020.88,0.00027397,7]
[384951182,1757633468086,-159.095754,0.00027397,7]
[384951183,1757633468096,-258.273751,0.00027397,7]
[384951184,1757633468105,-2326.81,0.00027397,7]
[384951185,1757633468115,-3357.08,0.00027397,7]
[384951186,1757633468124,-258.273751,0.00027397,7]
[384951187,1757633468133,-1539.49,0.00027397,7]
[384951188,1757633468143,-1135.17,0.00027397,7]
[384951189,1757633468152,-258.273744,0.00027397,7]
[384951190,1757633468162,-1001.4,0.00027397,7]
[384951191,1757633468171,-4286.71,0.00027397,7]
[384951192,1757633468180,-151.0,0.00027397,7]
[384951193,1757633468190,-151.0,0.00027397,7]
[384951194,1757633468199,-223.682041,0.00027397,7]
[384951195,1757633468208,-420.92862474,0.00027397,7]
[384951196,1757633468218,-400.0,0.00027397,7]
[384951197,1757633468227,-400.0,0.00027397,7]
[384951198,1757633468237,-500.0,0.00027397,7]
[384951199,1757633468246,-1178.15,0.00027397,7]
[384951200,1757633468255,-4759.47,0.00027397,7]
[384951201,1757633468264,-500.0,0.00027397,7]
[384951202,1757633468273,-151.0,0.00027397,7]
[384951203,1757633468282,-500.0,0.00027397,7]
[384951204,1757633468291,-151.0,0.00027397,7]
[384951205,1757633468300,-500.0,0.00027397,7]
[384951206,1757633468309,-151.0,0.00027397,7]
[384951207,1757633468319,-500.0,0.00027397,7]
[384951208,1757633468329,-400.0,0.00027397,7]
[384951209,1757633468337,-151.0,0.00027397,7]
[384951210,1757633468347,-500.0,0.00027397,7]
[384951211,1757633468356,-151.0,0.00027397,7]
[384951212,1757633468365,-152.842335,0.00027397,7]
[384951213,1757633468375,-151.0,0.00027397,7]
[384951214,1757633468384,-151.0,0.00027397,7]
[384951215,1757633468393,-681.762384,0.00027397,7]
[384951216,1757633468402,-681.762384,0.00027397,7]
[384951217,1757633468410,-446.708557,0.00027397,7]
[384951218,1757633468420,-681.762384,0.00027397,7]
[384951219,1757633468429,-446.708557,0.00027397,7]
[384951220,1757633468439,-681.762384,0.00027397,7]
[384951221,1757633468448,-446.708557,0.00027397,7]
[384951222,1757633468457,-1137.02,0.00027397,7]
[384951223,1757633468466,-681.762384,0.00027397,7]
[384951224,1757633468476,-401.06301443,0.00027397,7]
[384951225,1757633468486,-1095.27,0.00027397,7]
[384951226,1757633468495,-681.95,0.00027397,7]
[384951227,1757633468505,-446.708557,0.00027397,7]
[384951228,1757633468514,-1249.41,0.00027397,7]
[384951229,1757633468523,-681.762384,0.00027397,7]
[384951230,1757633468533,-400.0,0.00027397,7]
[384951231,1757633468542,-446.708557,0.00027397,7]
[384951232,1757633468551,-681.762384,0.00027397,7]
[384951233,1757633468561,-446.708557,0.00027397,7]
[384951234,1757633468571,-681.762384,0.00027397,7]
[384951235,1757633468581,-446.708557,0.00027397,7]
[384951236,1757633468590,-681.762384,0.00027397,7]
[384951237,1757633468599,-446.708557,0.00027397,7]
[384951238,1757633468608,-4804.05,0.00027397,7]
[384951239,1757633468618,-681.762384,0.00027397,7]
[384951240,1757633468627,-446.708557,0.00027397,7]
[384951241,1757633468637,-681.762384,0.00027397,7]
[384951242,1757633468646,-446.708557,0.00027397,7]
[384951243,1757633468655,-400.0,0.00027397,7]
[384951244,1757633468664,-400.0,0.00027397,7]
[384951245,1757633468674,-681.762384,0.00027397,7]
[384951246,1757633468684,-923.45,0.00027397,7]
[384951247,1757633468693,-446.708557,0.00027397,7]
[384951248,1757633468704,-712.85,0.00027397,7]
[384951249,1757633468713,-681.762384,0.00027397,7]
[384951250,1757633468723,-500.0,0.00027397,7]
[384951251,1757633468732,-1384.54,0.00027397,7]
[384951252,1757633468741,-446.708557,0.00027397,7]
[384951253,1757633468751,-500.0,0.00027397,7]
[384951254,1757633468760,-681.762384,0.00027397,7]
[384951255,1757633468770,-500.0,0.00027397,7]
[384951256,1757633468779,-446.708557,0.00027397,7]
[384951257,1757633468788,-681.762384,0.00027397,7]
[384951258,1757633468798,-500.0,0.00027397,7]
[384951259,1757633468808,-446.708557,0.00027397,7]
[384951260,1757633468818,-681.762384,0.00027397,7]
[384951261,1757633468827,-500.0,0.00027397,7]
[384951262,1757633468837,-681.762384,0.00027397,7]
[384951263,1757633468847,-446.708557,0.00027397,7]
[384951264,1757633468856,-400.0,0.00027397,7]
[384951265,1757633468865,-446.708557,0.00027397,7]
[384951266,1757633468875,-681.762384,0.00027397,7]
[384951267,1757633468885,-500.0,0.00027397,7]
[384951268,1757633468895,-446.708557,0.00027397,7]
[384951269,1757633468904,-681.762384,0.00027397,7]
[384951270,1757633468914,-500.0,0.00027397,7]
[384951271,1757633468924,-151.0,0.00027397,7]
[384951272,1757633468934,-446.708557,0.00027397,7]
[384951273,1757633468944,-400.0,0.00027397,7]
[384951274,1757633468954,-500.0,0.00027397,7]
[384951275,1757633468963,-446.708557,0.00027397,7]
[384951276,1757633468973,-151.0,0.00027397,7]
[384951277,1757633468982,-681.76238,0.00027397,7]
[384951278,1757633468992,-500.0,0.00027397,7]
[384951279,1757633469002,-151.0,0.00027397,7]
[384951280,1757633469011,-446.708555,0.00027397,7]
[384951281,1757633469020,-500.0,0.00027397,7]
[384951282,1757633469030,-151.0,0.00027397,7]
[384951283,1757633469040,-151.0,0.00027397,7]
[384951284,1757633469049,-151.0,0.00027397,7]
[384951285,1757633469059,-151.0,0.00027397,7]
[384951286,1757633469069,-2383.73,0.00027397,7]
[384951287,1757633469079,-1385.16,0.00027397,7]
[384951288,1757633469088,-400.0,0.00027397,7]
[384951289,1757633469098,-151.0,0.00027397,7]
[384951290,1757633469107,-151.0,0.00027397,7]
[384951291,1757633469117,-151.0,0.00027397,7]
[384951292,1757633469127,-151.0,0.00027397,7]
[384951293,1757633469136,-151.0,0.00027397,7]
[384951294,1757633469146,-5278.59,0.00027397,7]
[384951295,1757633469256,-1440.73,0.00027397,7]
[384951296,1757633469266,-909.93,0.00027397,7]
[384951297,1757633469275,-1917.55,0.00027397,7]
[384951298,1757633469284,-943.46,0.00027397,7]
[384951299,1757633469294,-400.0,0.00027397,7]
[384951300,1757633469304,-400.0,0.00027397,7]
[384951301,1757633469314,-400.0,0.00027397,7]
[384951302,1757633469323,-1768.75,0.00027397,7]
[384951303,1757633469332,-400.0,0.00027397,7]
[384951304,1757633469342,-8253.190195,0.00027397,7]
[384951305,1757633469351,-1850.78,0.00027397,7]
[384951306,1757633469360,-400.0,0.00027397,7]
[384951307,1757633469369,-8253.190195,0.00027397,7]
[384951308,1757633469379,-8253.190195,0.00027397,7]
[384951309,1757633469388,-8253.190195,0.00027397,7]
[384951310,1757633469397,-8253.190195,0.00027397,7]
[384951311,1757633469406,-151.0,0.00027397,7]
[384951312,1757633469416,-1414.65,0.00027397,7]
[384951313,1757633469425,-8253.190195,0.00027397,7]
[384951314,1757633469434,-403.5652778,0.00027397,7]